[Event "Late-Titled-Tuesday-Blitz-March-12-2024"]
[Site "Chess.com"]
[Date "2024.03.12"]
[Round "5"]
[White "Byniolus"]
[Black "Resignify"]
[Result "1-0"]
[WhiteElo "2783"]
[BlackElo "2260"]
[TimeControl "180+1"]
[EndTime "14:53:17 PDT"]
[Termination "Byniolus won by resignation"]

1. g3 {[%clk 0:03:00.9]} 1... Nf6 {[%clk 0:02:59.1]} 2. d3 {[%clk 0:03:01.3]}
2... g6 {[%clk 0:02:59.2]} 3. e3 {[%clk 0:03:01.6]} 3... Bg7 {[%clk 0:02:59.4]}
4. f3 {[%clk 0:03:02]} 4... O-O {[%clk 0:02:59.4]} 5. c3 {[%clk 0:03:02.6]} 5...
d6 {[%clk 0:02:59.6]} 6. b3 {[%clk 0:03:03]} 6... Nbd7 {[%clk 0:02:58.9]} 7. a3
{[%clk 0:03:03.3]} 7... a6 {[%clk 0:02:58.5]} 8. h3 {[%clk 0:03:03.7]} 8... b6
{[%clk 0:02:58.5]} 9. Ne2 {[%clk 0:03:03.9]} 9... Bb7 {[%clk 0:02:58.7]} 10. Bg2
{[%clk 0:03:04.7]} 10... Ne5 {[%clk 0:02:55.7]} 11. O-O {[%clk 0:02:59.6]} 11...
c5 {[%clk 0:02:52.6]} 12. e4 {[%clk 0:02:47.3]} 12... e6 {[%clk 0:02:38.1]} 13.
d4 {[%clk 0:02:41.2]} 13... cxd4 {[%clk 0:02:35.1]} 14. cxd4 {[%clk 0:02:42.1]}
14... Nc6 {[%clk 0:02:28.9]} 15. Be3 {[%clk 0:02:40.7]} 15... Ne8 {[%clk
0:01:37.4]} 16. Ra2 {[%clk 0:02:32.3]} 16... f5 {[%clk 0:01:36.5]} 17. Nf4
{[%clk 0:02:12.5]} 17... Qe7 {[%clk 0:01:32.3]} 18. d5 {[%clk 0:02:12.3]} 18...
exd5 {[%clk 0:00:51.3]} 19. Nxd5 {[%clk 0:02:13.2]} 19... Qf7 {[%clk 0:00:45.3]}
20. Bxb6 {[%clk 0:01:48.6]} 20... Ne5 {[%clk 0:00:38.6]} 21. f4 {[%clk
0:01:39.2]} 21... Nd7 {[%clk 0:00:37.4]} 22. exf5 {[%clk 0:01:26.3]} 22... Nxb6
{[%clk 0:00:26.7]} 23. fxg6 {[%clk 0:01:23]} 23... hxg6 {[%clk 0:00:23.1]} 24.
Nxb6 {[%clk 0:01:22]} 24... Bxg2 {[%clk 0:00:15.2]} 25. Rxg2 {[%clk 0:01:22.9]}
25... Rb8 {[%clk 0:00:14.1]} 26. Nd5 {[%clk 0:01:11.6]} 26... Nf6 {[%clk
0:00:12.9]} 27. Nbc3 {[%clk 0:01:06.2]} 27... Qa7+ {[%clk 0:00:08.9]} 28. Kh2
{[%clk 0:01:04.3]} 28... Qc5 {[%clk 0:00:08.4]} 29. b4 {[%clk 0:00:58.7]} 29...
Qc4 {[%clk 0:00:07.9]} 30. Nxf6+ {[%clk 0:00:58.4]} 30... Rxf6 {[%clk
0:00:08.5]} 31. Qd5+ {[%clk 0:00:56.5]} 31... Qxd5 {[%clk 0:00:09.1]} 32. Nxd5
{[%clk 0:00:57.4]} 32... Rf5 {[%clk 0:00:08.8]} 33. Ne7+ {[%clk 0:00:57]} 1-0

[Event "Late-Titled-Tuesday-Blitz-March-12-2024"]
[Site "Chess.com"]
[Date "2024.03.12"]
[Round "5"]
[White "KyronGriffith"]
[Black "pooh2012"]
[Result "1-0"]
[WhiteElo "2691"]
[BlackElo "2537"]
[TimeControl "180+1"]
[EndTime "14:53:18 PDT"]
[Termination "KyronGriffith won by resignation"]

1. e4 {[%clk 0:03:00.9]} 1... c6 {[%clk 0:02:58.9]} 2. d4 {[%clk 0:03:00.1]}
2... d5 {[%clk 0:02:58.3]} 3. e5 {[%clk 0:03:00.8]} 3... Bf5 {[%clk 0:02:56.9]}
4. h4 {[%clk 0:03:01.4]} 4... h5 {[%clk 0:02:55.7]} 5. Bd3 {[%clk 0:03:02]} 5...
Bxd3 {[%clk 0:02:55]} 6. Qxd3 {[%clk 0:03:02.9]} 6... Qa5+ {[%clk 0:02:54.7]} 7.
Nd2 {[%clk 0:03:01.7]} 7... Qa6 {[%clk 0:02:54.9]} 8. Qxa6 {[%clk 0:02:48.8]}
8... Nxa6 {[%clk 0:02:53.4]} 9. c3 {[%clk 0:02:46.6]} 9... e6 {[%clk 0:02:51.9]}
10. Ne2 {[%clk 0:02:45.1]} 10... Ne7 {[%clk 0:02:46.4]} 11. b4 {[%clk
0:02:39.7]} 11... Nc7 {[%clk 0:02:42.2]} 12. Nb3 {[%clk 0:02:39.6]} 12... Nf5
{[%clk 0:02:39.5]} 13. Bg5 {[%clk 0:02:35.8]} 13... Be7 {[%clk 0:02:35.5]} 14.
Bxe7 {[%clk 0:02:34.2]} 14... Kxe7 {[%clk 0:02:33.3]} 15. g3 {[%clk 0:02:33.9]}
15... b6 {[%clk 0:02:20.8]} 16. Kd2 {[%clk 0:02:28.4]} 16... Rhb8 {[%clk
0:02:15.1]} 17. Rhb1 {[%clk 0:02:24.6]} 17... Rb7 {[%clk 0:01:50]} 18. a4 {[%clk
0:02:22.7]} 18... Rab8 {[%clk 0:01:47.6]} 19. a5 {[%clk 0:02:22]} 19... Nb5
{[%clk 0:01:46.7]} 20. axb6 {[%clk 0:02:17.3]} 20... axb6 {[%clk 0:01:45.8]} 21.
Ra4 {[%clk 0:02:13.2]} 21... Ra7 {[%clk 0:01:44.1]} 22. Rxa7+ {[%clk 0:02:11.5]}
22... Nxa7 {[%clk 0:01:45]} 23. Ra1 {[%clk 0:02:11.3]} 23... Rb7 {[%clk
0:01:42]} 24. Nf4 {[%clk 0:02:10.1]} 24... g6 {[%clk 0:01:41.4]} 25. Nh3 {[%clk
0:02:06]} 25... Nb5 {[%clk 0:01:39.7]} 26. Ng5 {[%clk 0:01:40.8]} 26... Ra7
{[%clk 0:01:38.4]} 27. Rxa7+ {[%clk 0:01:41.3]} 27... Nxa7 {[%clk 0:01:38.5]}
28. Nc1 {[%clk 0:01:39.4]} 28... Nb5 {[%clk 0:01:34]} 29. Nd3 {[%clk 0:01:39.9]}
29... Na3 {[%clk 0:01:30.9]} 30. Nf4 {[%clk 0:01:38.1]} 30... Nc4+ {[%clk
0:01:27.1]} 31. Kc2 {[%clk 0:01:38]} 31... Nh6 {[%clk 0:01:22.5]} 32. Nd3 {[%clk
0:01:33.1]} 32... Ng4 {[%clk 0:01:13.5]} 33. Kb3 {[%clk 0:01:31.7]} 33... Nd2+
{[%clk 0:01:09.2]} 34. Kc2 {[%clk 0:01:27.2]} 34... Ne4 {[%clk 0:01:05.6]} 35.
Nh3 {[%clk 0:01:18]} 35... Nh6 {[%clk 0:00:51.6]} 36. Kb3 {[%clk 0:01:15.7]}
36... Kd7 {[%clk 0:00:46.7]} 37. Kc2 {[%clk 0:01:09.8]} 37... Kc7 {[%clk
0:00:45.3]} 38. Nc1 {[%clk 0:01:03.7]} 38... Kb7 {[%clk 0:00:33.4]} 39. Ne2
{[%clk 0:01:04.3]} 39... Ka6 {[%clk 0:00:30.8]} 40. f3 {[%clk 0:01:04.9]} 1-0

[Event "Late-Titled-Tuesday-Blitz-March-12-2024"]
[Site "Chess.com"]
[Date "2024.03.12"]
[Round "5"]
[White "emeli_chess"]
[Black "dodorox"]
[Result "1-0"]
[WhiteElo "2385"]
[BlackElo "2153"]
[TimeControl "180+1"]
[EndTime "14:53:24 PDT"]
[Termination "emeli_chess won by resignation"]

1. d4 {[%clk 0:03:00.9]} 1... Nf6 {[%clk 0:02:57]} 2. c4 {[%clk 0:03:00.9]} 2...
e6 {[%clk 0:02:55.8]} 3. Nc3 {[%clk 0:03:01]} 3... d5 {[%clk 0:02:56.4]} 4. cxd5
{[%clk 0:03:00.5]} 4... exd5 {[%clk 0:02:56.5]} 5. Bg5 {[%clk 0:03:00.4]} 5...
Be7 {[%clk 0:02:56.4]} 6. e3 {[%clk 0:03:00.2]} 6... h6 {[%clk 0:02:54.2]} 7.
Bh4 {[%clk 0:02:59.9]} 7... c6 {[%clk 0:02:53.2]} 8. Bd3 {[%clk 0:02:59.9]} 8...
Nbd7 {[%clk 0:02:50.4]} 9. Qc2 {[%clk 0:02:59.3]} 9... Nh5 {[%clk 0:02:47]} 10.
Bxe7 {[%clk 0:02:57]} 10... Qxe7 {[%clk 0:02:47.9]} 11. Nge2 {[%clk 0:02:57.1]}
11... Nhf6 {[%clk 0:02:40.9]} 12. O-O {[%clk 0:02:47.3]} 12... O-O {[%clk
0:02:40.3]} 13. Rae1 {[%clk 0:02:42.7]} 13... Re8 {[%clk 0:02:34.5]} 14. Ng3
{[%clk 0:02:42.2]} 14... Nf8 {[%clk 0:02:17.7]} 15. f3 {[%clk 0:02:39.8]} 15...
Qd6 {[%clk 0:01:55.6]} 16. Nf5 {[%clk 0:02:30.4]} 16... Bxf5 {[%clk 0:01:47.9]}
17. Bxf5 {[%clk 0:02:30.1]} 17... Re7 {[%clk 0:01:48]} 18. Qd2 {[%clk
0:02:09.8]} 18... Rae8 {[%clk 0:01:32.7]} 19. Bb1 {[%clk 0:01:44.3]} 19... Rd8
{[%clk 0:01:11.6]} 20. a3 {[%clk 0:01:41.3]} 20... c5 {[%clk 0:01:03]} 21. dxc5
{[%clk 0:01:37.4]} 21... Qxc5 {[%clk 0:01:03.4]} 22. Qd4 {[%clk 0:01:37.7]}
22... Qxd4 {[%clk 0:00:55.1]} 23. exd4 {[%clk 0:01:37.7]} 23... Rxe1 {[%clk
0:00:53.1]} 24. Rxe1 {[%clk 0:01:38.6]} 24... Ne6 {[%clk 0:00:53.5]} 25. Rd1
{[%clk 0:01:26]} 25... Rd7 {[%clk 0:00:31.2]} 26. Kf2 {[%clk 0:01:23.3]} 26...
Kf8 {[%clk 0:00:31.2]} 27. Bf5 {[%clk 0:01:20.9]} 27... Ke7 {[%clk 0:00:29.8]}
28. Re1 {[%clk 0:01:18.6]} 28... a6 {[%clk 0:00:28.6]} 29. h4 {[%clk 0:01:14.3]}
29... Kd6 {[%clk 0:00:28.6]} 30. Bxe6 {[%clk 0:01:12.9]} 30... fxe6 {[%clk
0:00:28.8]} 31. Ne2 {[%clk 0:01:03.4]} 31... Re7 {[%clk 0:00:25.7]} 32. Nf4
{[%clk 0:01:01]} 32... e5 {[%clk 0:00:21.5]} 33. Ng6 {[%clk 0:01:00.5]} 1-0

[Event "Late-Titled-Tuesday-Blitz-March-12-2024"]
[Site "Chess.com"]
[Date "2024.03.12"]
[Round "5"]
[White "grandcoach"]
[Black "ploxoi"]
[Result "1-0"]
[WhiteElo "2224"]
[BlackElo "2402"]
[TimeControl "180+1"]
[EndTime "14:53:25 PDT"]
[Termination "grandcoach won by checkmate"]

1. e4 {[%clk 0:02:55.4]} 1... c6 {[%clk 0:02:59.5]} 2. d4 {[%clk 0:02:51]} 2...
d5 {[%clk 0:02:59.5]} 3. e5 {[%clk 0:02:51.6]} 3... c5 {[%clk 0:02:59.8]} 4.
dxc5 {[%clk 0:02:51.8]} 4... Nc6 {[%clk 0:02:59.6]} 5. Nf3 {[%clk 0:02:50.4]}
5... Bg4 {[%clk 0:02:59.5]} 6. h3 {[%clk 0:02:38]} 6... Bxf3 {[%clk 0:02:58.8]}
7. Qxf3 {[%clk 0:02:38.9]} 7... Nxe5 {[%clk 0:02:58.7]} 8. Bb5+ {[%clk 0:02:39]}
8... Nc6 {[%clk 0:02:57.8]} 9. c4 {[%clk 0:02:34.5]} 9... e6 {[%clk 0:02:53.9]}
10. Be3 {[%clk 0:02:30.1]} 10... Nf6 {[%clk 0:02:46.2]} 11. Nc3 {[%clk
0:02:27.1]} 11... Be7 {[%clk 0:02:46.2]} 12. Rd1 {[%clk 0:02:13.8]} 12... Qa5
{[%clk 0:02:31.9]} 13. O-O {[%clk 0:01:57.2]} 13... a6 {[%clk 0:02:20.1]} 14.
cxd5 {[%clk 0:01:44.4]} 14... Nxd5 {[%clk 0:02:16.3]} 15. Bxc6+ {[%clk
0:01:35.7]} 15... bxc6 {[%clk 0:02:16]} 16. Ne4 {[%clk 0:01:24.9]} 16... O-O
{[%clk 0:02:13.5]} 17. a3 {[%clk 0:01:20.6]} 17... Rab8 {[%clk 0:02:06.7]} 18.
Rd2 {[%clk 0:00:59.5]} 18... Rb3 {[%clk 0:02:00]} 19. Rfd1 {[%clk 0:00:49.3]}
19... Nxe3 {[%clk 0:01:58.2]} 20. fxe3 {[%clk 0:00:48.1]} 20... Bxc5 {[%clk
0:01:57.2]} 21. Nxc5 {[%clk 0:00:30.7]} 21... Qxc5 {[%clk 0:01:56.2]} 22. Kf2
{[%clk 0:00:25.6]} 22... h6 {[%clk 0:01:51.6]} 23. Qe4 {[%clk 0:00:22.1]} 23...
Qf5+ {[%clk 0:01:46.1]} 24. Qxf5 {[%clk 0:00:20.9]} 24... exf5 {[%clk 0:01:47]}
25. Rc1 {[%clk 0:00:19.8]} 25... Rfb8 {[%clk 0:01:45.9]} 26. Rxc6 {[%clk
0:00:19]} 26... Rxb2 {[%clk 0:01:46.8]} 27. Rxb2 {[%clk 0:00:17.8]} 27... Rxb2+
{[%clk 0:01:45.5]} 28. Kf3 {[%clk 0:00:18.5]} 28... a5 {[%clk 0:01:43.2]} 29.
Rc5 {[%clk 0:00:18.4]} 29... a4 {[%clk 0:01:40.2]} 30. Rc4 {[%clk 0:00:18.3]}
30... g5 {[%clk 0:01:39.3]} 31. Rxa4 {[%clk 0:00:18.1]} 31... Kg7 {[%clk
0:01:39.8]} 32. Ra6 {[%clk 0:00:17.3]} 32... Rb3 {[%clk 0:01:38.2]} 33. Kf2
{[%clk 0:00:16.7]} 33... f6 {[%clk 0:01:32.1]} 34. g4 {[%clk 0:00:16]} 34... f4
{[%clk 0:01:29.2]} 35. exf4 {[%clk 0:00:15.5]} 35... Rxh3 {[%clk 0:01:28.9]} 36.
f5 {[%clk 0:00:14.2]} 36... Rh2+ {[%clk 0:01:27.5]} 37. Kg3 {[%clk 0:00:13.6]}
37... Ra2 {[%clk 0:01:26.6]} 38. Ra7+ {[%clk 0:00:14.1]} 38... Kg8 {[%clk
0:01:26.4]} 39. a4 {[%clk 0:00:14.6]} 39... Ra3+ {[%clk 0:01:26.2]} 40. Kf2
{[%clk 0:00:14.8]} 40... h5 {[%clk 0:01:26]} 41. gxh5 {[%clk 0:00:13.6]} 41...
Rh3 {[%clk 0:01:26]} 42. a5 {[%clk 0:00:12.2]} 42... Rxh5 {[%clk 0:01:26.3]} 43.
a6 {[%clk 0:00:12.7]} 43... Rh2+ {[%clk 0:01:26.2]} 44. Kg3 {[%clk 0:00:12]}
44... Ra2 {[%clk 0:01:26.8]} 45. Kg4 {[%clk 0:00:12.4]} 45... Ra5 {[%clk
0:01:22.8]} 46. Kh5 {[%clk 0:00:12.8]} 46... Rxf5 {[%clk 0:01:22.8]} 47. Kg6
{[%clk 0:00:13]} 47... Kf8 {[%clk 0:01:21.9]} 48. Kxf5 {[%clk 0:00:11.8]} 48...
Ke8 {[%clk 0:01:22.5]} 49. Kxf6 {[%clk 0:00:12.2]} 49... g4 {[%clk 0:01:22.9]}
50. Rg7 {[%clk 0:00:11.6]} 50... g3 {[%clk 0:01:22.8]} 51. a7 {[%clk 0:00:11.8]}
51... g2 {[%clk 0:01:22.1]} 52. a8=Q# {[%clk 0:00:11.9]} 1-0

[Event "Late-Titled-Tuesday-Blitz-March-12-2024"]
[Site "Chess.com"]
[Date "2024.03.12"]
[Round "5"]
[White "Jahonas"]
[Black "santosalberto1987"]
[Result "0-1"]
[WhiteElo "2320"]
[BlackElo "2549"]
[TimeControl "180+1"]
[EndTime "14:53:26 PDT"]
[Termination "santosalberto1987 won by resignation"]

1. e4 {[%clk 0:03:00.9]} 1... e6 {[%clk 0:03:00]} 2. d4 {[%clk 0:02:52.3]} 2...
d5 {[%clk 0:03:00.4]} 3. Nc3 {[%clk 0:02:52.2]} 3... Nf6 {[%clk 0:03:00.3]} 4.
e5 {[%clk 0:02:52.6]} 4... Nfd7 {[%clk 0:03:00.6]} 5. Nce2 {[%clk 0:02:51.3]}
5... c5 {[%clk 0:02:59.9]} 6. c3 {[%clk 0:02:51.5]} 6... Nc6 {[%clk 0:03:00.3]}
7. Nf3 {[%clk 0:02:51.3]} 7... b5 {[%clk 0:02:52.5]} 8. a3 {[%clk 0:02:51.4]}
8... a5 {[%clk 0:02:52.1]} 9. Be3 {[%clk 0:02:50.2]} 9... Ba6 {[%clk 0:02:51.6]}
10. dxc5 {[%clk 0:02:44]} 10... Bxc5 {[%clk 0:02:50.7]} 11. Bxc5 {[%clk
0:02:40.9]} 11... Nxc5 {[%clk 0:02:51.6]} 12. Ned4 {[%clk 0:02:36.4]} 12... Nxd4
{[%clk 0:02:51.7]} 13. cxd4 {[%clk 0:02:35]} 13... Ne4 {[%clk 0:02:51.3]} 14.
Bd3 {[%clk 0:02:33.8]} 14... O-O {[%clk 0:02:48]} 15. O-O {[%clk 0:02:32.6]}
15... Qb6 {[%clk 0:02:44.1]} 16. Qe2 {[%clk 0:02:25]} 16... Rfd8 {[%clk
0:02:34.8]} 17. Bxe4 {[%clk 0:02:16]} 17... dxe4 {[%clk 0:02:34.3]} 18. Qxe4
{[%clk 0:02:10.7]} 18... Bb7 {[%clk 0:02:34.2]} 19. Qf4 {[%clk 0:02:08]} 19...
Bxf3 {[%clk 0:02:33.8]} 20. Qxf3 {[%clk 0:02:08.2]} 20... Qxd4 {[%clk
0:02:32.5]} 21. Qe2 {[%clk 0:01:56.8]} 21... Rd5 {[%clk 0:02:23.7]} 22. Rfe1
{[%clk 0:01:52.1]} 22... Rad8 {[%clk 0:02:23.4]} 23. g3 {[%clk 0:01:48.5]} 23...
Qd2 {[%clk 0:02:14.7]} 24. Rac1 {[%clk 0:01:38.8]} 24... Qxe2 {[%clk 0:02:03.7]}
25. Rxe2 {[%clk 0:01:38.2]} 25... g5 {[%clk 0:02:04.3]} 26. Kg2 {[%clk
0:01:35.1]} 26... Rd2 {[%clk 0:02:03.1]} 27. Rc2 {[%clk 0:01:26.8]} 27... Rxe2
{[%clk 0:02:03]} 28. Rxe2 {[%clk 0:01:26.4]} 28... Rd3 {[%clk 0:02:03.6]} 29.
Rc2 {[%clk 0:01:21.2]} 29... Rb3 {[%clk 0:02:01]} 30. f4 {[%clk 0:01:19.1]}
30... gxf4 {[%clk 0:02:00.4]} 31. gxf4 {[%clk 0:01:19]} 31... Kg7 {[%clk
0:02:01.3]} 32. Kg1 {[%clk 0:00:58.5]} 32... Kg6 {[%clk 0:01:53.9]} 33. Rg2+
{[%clk 0:00:55.5]} 33... Kf5 {[%clk 0:01:53.7]} 34. Rg7 {[%clk 0:00:54.5]} 34...
Kxf4 {[%clk 0:01:52.5]} 35. Rxh7 {[%clk 0:00:46.2]} 35... Kxe5 {[%clk
0:01:51.6]} 36. Rxf7 {[%clk 0:00:42.4]} 36... Rxb2 {[%clk 0:01:51.4]} 37. Rb7
{[%clk 0:00:36.9]} 37... Kf4 {[%clk 0:01:43.1]} 38. Kf1 {[%clk 0:00:23.8]} 38...
b4 {[%clk 0:01:40]} 39. axb4 {[%clk 0:00:22.6]} 39... axb4 {[%clk 0:01:40.9]}
40. Ke1 {[%clk 0:00:22.5]} 40... e5 {[%clk 0:01:39.8]} 41. Kd1 {[%clk
0:00:22.7]} 41... e4 {[%clk 0:01:37.5]} 42. Kc1 {[%clk 0:00:22.6]} 42... Rxh2
{[%clk 0:01:36.9]} 43. Rxb4 {[%clk 0:00:22.8]} 43... Kf3 {[%clk 0:01:35.1]} 44.
Rb8 {[%clk 0:00:20.9]} 44... e3 {[%clk 0:01:32.8]} 45. Rf8+ {[%clk 0:00:18.3]}
45... Ke2 {[%clk 0:01:32.7]} 46. Kc2 {[%clk 0:00:17.2]} 46... Rh7 {[%clk
0:01:31.8]} 47. Rc8 {[%clk 0:00:16.1]} 47... Rf7 {[%clk 0:01:27.9]} 48. Rc6
{[%clk 0:00:11.8]} 48... Kf2 {[%clk 0:01:27.4]} 49. Re6 {[%clk 0:00:10.5]} 49...
e2 {[%clk 0:01:26.2]} 50. Kd2 {[%clk 0:00:10.4]} 50... Rd7+ {[%clk 0:01:25.9]}
0-1

[Event "Late-Titled-Tuesday-Blitz-March-12-2024"]
[Site "Chess.com"]
[Date "2024.03.12"]
[Round "5"]
[White "Fore_Man"]
[Black "shirovin"]
[Result "1-0"]
[WhiteElo "2308"]
[BlackElo "2047"]
[TimeControl "180+1"]
[EndTime "14:53:29 PDT"]
[Termination "Fore_Man won on time"]

1. Nf3 {[%clk 0:03:00.9]} 1... Nf6 {[%clk 0:02:58.5]} 2. d4 {[%clk 0:02:47.6]}
2... g6 {[%clk 0:02:56.9]} 3. c4 {[%clk 0:02:48.2]} 3... Bg7 {[%clk 0:02:56.7]}
4. g3 {[%clk 0:02:48]} 4... c6 {[%clk 0:02:56]} 5. Bg2 {[%clk 0:02:48.1]} 5...
d5 {[%clk 0:02:56.5]} 6. cxd5 {[%clk 0:02:43.7]} 6... cxd5 {[%clk 0:02:56.1]} 7.
O-O {[%clk 0:02:44]} 7... O-O {[%clk 0:02:53.2]} 8. Nc3 {[%clk 0:02:44.5]} 8...
Ne4 {[%clk 0:02:52.7]} 9. Bf4 {[%clk 0:02:42]} 9... Nxc3 {[%clk 0:02:43.7]} 10.
bxc3 {[%clk 0:02:42.9]} 10... Bf5 {[%clk 0:02:42.7]} 11. Qb3 {[%clk 0:02:36.4]}
11... Bc8 {[%clk 0:01:57.8]} 12. Ne5 {[%clk 0:02:08.7]} 12... e6 {[%clk
0:01:56.3]} 13. e4 {[%clk 0:02:01.3]} 13... dxe4 {[%clk 0:01:48.7]} 14. Bxe4
{[%clk 0:02:02.2]} 14... Nd7 {[%clk 0:01:48.5]} 15. Nxd7 {[%clk 0:01:44.4]}
15... Qxd7 {[%clk 0:01:47.4]} 16. Rab1 {[%clk 0:01:45.3]} 16... h6 {[%clk
0:01:17.8]} 17. Bxb7 {[%clk 0:01:43.9]} 17... Bxb7 {[%clk 0:01:15.6]} 18. Qxb7
{[%clk 0:01:44.8]} 18... Qxb7 {[%clk 0:01:13]} 19. Rxb7 {[%clk 0:01:45.7]} 19...
Rfc8 {[%clk 0:01:12.2]} 20. Rc1 {[%clk 0:01:44.5]} 20... g5 {[%clk 0:01:08.8]}
21. Be3 {[%clk 0:01:44.1]} 21... Rc4 {[%clk 0:01:06.2]} 22. Kf1 {[%clk
0:01:37.5]} 22... a5 {[%clk 0:01:01.3]} 23. Ke2 {[%clk 0:01:36.1]} 23... a4
{[%clk 0:00:58.6]} 24. Kd3 {[%clk 0:01:35.5]} 24... Rac8 {[%clk 0:00:57.6]} 25.
Rb4 {[%clk 0:01:31.3]} 25... Rxb4 {[%clk 0:00:51.5]} 26. cxb4 {[%clk 0:01:32.2]}
26... Rb8 {[%clk 0:00:48.8]} 27. Rb1 {[%clk 0:01:28.1]} 27... Bf8 {[%clk
0:00:39.8]} 28. b5 {[%clk 0:01:27.7]} 28... Bd6 {[%clk 0:00:36.4]} 29. b6 {[%clk
0:01:27.8]} 29... Rb7 {[%clk 0:00:36.1]} 30. Kc4 {[%clk 0:01:25.5]} 30... a3
{[%clk 0:00:16.4]} 31. Kb5 {[%clk 0:01:23.9]} 31... Bb8 {[%clk 0:00:11.9]} 32.
Kc6 {[%clk 0:01:23.5]} 32... Re7 {[%clk 0:00:11.7]} 33. Rb3 {[%clk 0:01:15.7]}
33... e5 {[%clk 0:00:09.4]} 34. d5 {[%clk 0:01:14.9]} 34... f5 {[%clk
0:00:07.5]} 35. d6 {[%clk 0:01:14.7]} 35... Re6 {[%clk 0:00:07.4]} 36. Bc5
{[%clk 0:01:15.1]} 36... e4 {[%clk 0:00:05.8]} 37. Rxa3 {[%clk 0:01:14.5]} 37...
f4 {[%clk 0:00:04.1]} 38. Ra8 {[%clk 0:01:11.4]} 38... Re8 {[%clk 0:00:03]} 39.
Rxb8 {[%clk 0:01:09.9]} 39... Rxb8 {[%clk 0:00:01.9]} 40. d7 {[%clk 0:01:10.5]}
1-0

[Event "Late-Titled-Tuesday-Blitz-March-12-2024"]
[Site "Chess.com"]
[Date "2024.03.12"]
[Round "5"]
[White "Herman-NY"]
[Black "ChessSwole"]
[Result "1-0"]
[WhiteElo "2549"]
[BlackElo "2693"]
[TimeControl "180+1"]
[EndTime "14:53:30 PDT"]
[Termination "Herman-NY won by checkmate"]

1. e4 {[%clk 0:02:01]} 1... c6 {[%clk 0:02:58.7]} 2. d4 {[%clk 0:02:00.9]} 2...
d5 {[%clk 0:02:58.8]} 3. e5 {[%clk 0:02:01.4]} 3... Bf5 {[%clk 0:02:57.9]} 4. h4
{[%clk 0:02:02]} 4... h5 {[%clk 0:02:57.9]} 5. c4 {[%clk 0:02:02.5]} 5... e6
{[%clk 0:02:57.5]} 6. Nc3 {[%clk 0:02:03]} 6... Ne7 {[%clk 0:02:57.7]} 7. Nge2
{[%clk 0:02:02.7]} 7... Bg4 {[%clk 0:02:55.1]} 8. Qb3 {[%clk 0:01:50.8]} 8...
Qd7 {[%clk 0:02:47.7]} 9. c5 {[%clk 0:01:45.6]} 9... Bxe2 {[%clk 0:02:36.9]} 10.
Bxe2 {[%clk 0:01:44.9]} 10... Nc8 {[%clk 0:02:29.1]} 11. Qa4 {[%clk 0:01:35.3]}
11... b6 {[%clk 0:02:26]} 12. b4 {[%clk 0:01:35.6]} 12... b5 {[%clk 0:02:17.9]}
13. Nxb5 {[%clk 0:01:33.1]} 13... Be7 {[%clk 0:02:03.9]} 14. Nc3 {[%clk
0:01:19]} 14... g6 {[%clk 0:01:47.9]} 15. Be3 {[%clk 0:01:17.2]} 15... O-O
{[%clk 0:01:47.2]} 16. g4 {[%clk 0:01:06.9]} 16... hxg4 {[%clk 0:01:48.1]} 17.
Bxg4 {[%clk 0:01:07.1]} 17... f5 {[%clk 0:01:32.2]} 18. exf6 {[%clk 0:00:53.7]}
18... Bxf6 {[%clk 0:01:31.9]} 19. Qc2 {[%clk 0:00:50.6]} 19... Ne7 {[%clk
0:01:31.1]} 20. Ne2 {[%clk 0:00:36.5]} 20... Nf5 {[%clk 0:01:29.2]} 21. Nf4
{[%clk 0:00:35]} 21... Bxd4 {[%clk 0:01:26.6]} 22. Bxf5 {[%clk 0:00:28.6]} 22...
Rxf5 {[%clk 0:01:21.7]} 23. Bxd4 {[%clk 0:00:28.8]} 23... e5 {[%clk 0:01:16.5]}
24. Nxg6 {[%clk 0:00:29.2]} 24... Rh5 {[%clk 0:00:55.5]} 25. Nxe5 {[%clk
0:00:18.4]} 25... Qe6 {[%clk 0:00:54.4]} 26. Rg1+ {[%clk 0:00:16.1]} 26... Kf8
{[%clk 0:00:53.5]} 27. f4 {[%clk 0:00:14.2]} 27... a5 {[%clk 0:00:49.8]} 28. b5
{[%clk 0:00:13.9]} 28... cxb5 {[%clk 0:00:47]} 29. O-O-O {[%clk 0:00:14.3]}
29... Na6 {[%clk 0:00:45.1]} 30. Rg6 {[%clk 0:00:12.8]} 30... Qh3 {[%clk
0:00:39.4]} 31. Rdg1 {[%clk 0:00:10.8]} 31... Nb4 {[%clk 0:00:34.8]} 32. Rg8+
{[%clk 0:00:10.8]} 32... Ke7 {[%clk 0:00:35.2]} 33. R1g7+ {[%clk 0:00:10.6]}
33... Ke6 {[%clk 0:00:35.3]} 34. Qg6# {[%clk 0:00:10.7]} 1-0